[Event "*** Titled Tuesday Blitz"]
[Site "Chess.com"]
[Date "2018.06.05"]
[Round "8"]
[White "SergeiAza"]
[Black "Korchmar_Vasiliy"]
[Result "1-0"]
[WhiteElo "2639"]
[BlackElo "2696"]
[TimeControl "180+2"]
[EndTime "14:58:01 PDT"]
[Termination "SergeiAza won by resignation"]

1. e4 {[%clk 0:03:01.9]} 1... c5 {[%clk 0:03:00.2]} 2. Nf3 {[%clk 0:03:02.9]}
2... d6 {[%clk 0:03:01.3]} 3. d4 {[%clk 0:03:04.5]} 3... cxd4 {[%clk 0:03:02.6]}
4. Nxd4 {[%clk 0:03:06.2]} 4... Nf6 {[%clk 0:03:04.1]} 5. Nc3 {[%clk 0:03:07.8]}
5... Nc6 {[%clk 0:03:05.5]} 6. Bg5 {[%clk 0:03:07.7]} 6... e6 {[%clk 0:03:06.5]}
7. Qd2 {[%clk 0:03:07.6]} 7... a6 {[%clk 0:03:07.4]} 8. O-O-O {[%clk 0:03:08.1]}
8... h6 {[%clk 0:03:08.3]} 9. Bxf6 {[%clk 0:03:03.4]} 9... Qxf6 {[%clk
0:03:08.4]} 10. Nxc6 {[%clk 0:03:04.1]} 10... bxc6 {[%clk 0:03:09.6]} 11. f4
{[%clk 0:03:04.5]} 11... Qd8 {[%clk 0:03:10.2]} 12. Bc4 {[%clk 0:03:03.7]} 12...
Be7 {[%clk 0:03:10.9]} 13. Kb1 {[%clk 0:03:01.4]} 13... O-O {[%clk 0:03:11.9]}
14. h4 {[%clk 0:03:00.6]} 14... d5 {[%clk 0:03:09.6]} 15. Bb3 {[%clk 0:02:56.8]}
15... a5 {[%clk 0:02:56.5]} 16. g4 {[%clk 0:02:54.1]} 16... Bb4 {[%clk
0:02:12.4]} 17. a3 {[%clk 0:02:35.7]} 17... Bxc3 {[%clk 0:01:59.2]} 18. Qxc3
{[%clk 0:02:36.6]} 18... a4 {[%clk 0:02:00.7]} 19. Ba2 {[%clk 0:02:37.5]} 19...
Qb6 {[%clk 0:02:01.4]} 20. g5 {[%clk 0:02:35]} 20... h5 {[%clk 0:01:58.5]} 21.
Rhg1 {[%clk 0:02:22.7]} 21... Ra5 {[%clk 0:01:56.7]} 22. g6 {[%clk 0:02:20.6]}
22... Rb5 {[%clk 0:01:45.2]} 23. Rg3 {[%clk 0:01:42.7]} 23... e5 {[%clk
0:01:15.2]} 24. exd5 {[%clk 0:01:28.4]} 24... Bg4 {[%clk 0:01:12.8]} 25. gxf7+
{[%clk 0:01:26.1]} 25... Kh8 {[%clk 0:01:11.3]} 26. Rxg4 {[%clk 0:01:21]} 26...
hxg4 {[%clk 0:01:05]} 27. Qxe5 {[%clk 0:01:03.8]} 27... cxd5 {[%clk 0:01:03.9]}
28. Bxd5 {[%clk 0:00:25.9]} 28... g3 {[%clk 0:01:04.7]} 29. c4 {[%clk
0:00:21.9]} 29... Rb3 {[%clk 0:00:57.1]} 30. c5 {[%clk 0:00:20.2]} 30... Qg6+
{[%clk 0:00:50.5]} 31. f5 {[%clk 0:00:19.9]} 31... Qh5 {[%clk 0:00:30.1]} 32.
Bxb3 {[%clk 0:00:18]} 32... axb3 {[%clk 0:00:29.9]} 33. Rc1 {[%clk 0:00:19.3]}
33... g2 {[%clk 0:00:12.9]} 34. c6 {[%clk 0:00:17.8]} 34... Qg4 {[%clk
0:00:13.3]} 35. Qc5 {[%clk 0:00:15.9]} 35... Rxf7 {[%clk 0:00:13.2]} 36. c7
{[%clk 0:00:13.4]} 36... Rxc7 {[%clk 0:00:12.3]} 37. Qxc7 {[%clk 0:00:14.4]}
37... g1=Q {[%clk 0:00:12.6]} 38. Rxg1 {[%clk 0:00:15.9]} 38... Qxg1+ {[%clk
0:00:14.5]} 39. Qc1 {[%clk 0:00:16.9]} 39... Qf2 {[%clk 0:00:09.3]} 40. Ka1
{[%clk 0:00:12.1]} 40... Qxf5 {[%clk 0:00:10.2]} 41. Qd1 {[%clk 0:00:10.8]}
41... Qc2 {[%clk 0:00:10.6]} 42. Qh5+ {[%clk 0:00:10]} 42... Kg8 {[%clk
0:00:11.5]} 43. Qe8+ {[%clk 0:00:10.6]} 43... Kh7 {[%clk 0:00:12.8]} 44. Qe1
{[%clk 0:00:11.8]} 44... Kg6 {[%clk 0:00:11]} 45. a4 {[%clk 0:00:11.8]} 45...
Kh5 {[%clk 0:00:07.6]} 46. a5 {[%clk 0:00:10.9]} 46... Qc4 {[%clk 0:00:08.8]}
47. Kb1 {[%clk 0:00:09.8]} 47... Qd3+ {[%clk 0:00:08.5]} 48. Ka1 {[%clk
0:00:10.1]} 48... Qc4 {[%clk 0:00:09.8]} 49. Kb1 {[%clk 0:00:07.6]} 49... Qa4
{[%clk 0:00:10.8]} 50. Qc3 {[%clk 0:00:05.4]} 50... Kxh4 {[%clk 0:00:08.1]} 51.
Kc1 {[%clk 0:00:06.7]} 51... g5 {[%clk 0:00:08.5]} 52. Kd2 {[%clk 0:00:05.1]}
52... g4 {[%clk 0:00:08.8]} 53. Qf6+ {[%clk 0:00:05.3]} 53... Kg3 {[%clk
0:00:08.9]} 54. a6 {[%clk 0:00:05.6]} 54... Qa5+ {[%clk 0:00:08.1]} 55. Qc3+
{[%clk 0:00:05.1]} 55... Qxc3+ {[%clk 0:00:07.9]} 56. Kxc3 {[%clk 0:00:06.6]}
56... Kf3 {[%clk 0:00:05.9]} 57. a7 {[%clk 0:00:08.1]} 57... g3 {[%clk
0:00:07.8]} 58. a8=Q+ {[%clk 0:00:09.4]} 1-0

[Event "*** Titled Tuesday Blitz"]
[Site "Chess.com"]
[Date "2018.06.05"]
[Round "8"]
[White "OparinGrigoriy"]
[Black "Durarbayli"]
[Result "1-0"]
[WhiteElo "2890"]
[BlackElo "2666"]
[TimeControl "180+2"]
[EndTime "14:58:13 PDT"]
[Termination "OparinGrigoriy won by resignation"]

1. Nf3 {[%clk 0:03:01.9]} 1... c5 {[%clk 0:03:00.3]} 2. e4 {[%clk 0:03:02.4]}
2... a6 {[%clk 0:03:00.9]} 3. c4 {[%clk 0:03:01.7]} 3... e6 {[%clk 0:03:00.8]}
4. Nc3 {[%clk 0:03:02.9]} 4... Qc7 {[%clk 0:03:01.7]} 5. d4 {[%clk 0:03:03.4]}
5... cxd4 {[%clk 0:03:01.6]} 6. Nxd4 {[%clk 0:03:05.3]} 6... Nf6 {[%clk
0:03:02.4]} 7. Be2 {[%clk 0:03:06.4]} 7... Bb4 {[%clk 0:02:59.3]} 8. Qd3 {[%clk
0:03:07.2]} 8... Nc6 {[%clk 0:02:58.6]} 9. O-O {[%clk 0:03:07.7]} 9... O-O
{[%clk 0:02:35.6]} 10. Bd2 {[%clk 0:02:50.6]} 10... Ne5 {[%clk 0:02:17.3]} 11.
Qg3 {[%clk 0:02:51.4]} 11... d6 {[%clk 0:01:37]} 12. Bg5 {[%clk 0:01:48.8]}
12... Ne8 {[%clk 0:01:35.9]} 13. Rac1 {[%clk 0:01:47.1]} 13... Bc5 {[%clk
0:01:02.9]} 14. Rfd1 {[%clk 0:01:45.3]} 14... Kh8 {[%clk 0:00:56.5]} 15. Nb3
{[%clk 0:01:40.6]} 15... Ba7 {[%clk 0:00:53.4]} 16. Bf4 {[%clk 0:01:41]} 16...
f6 {[%clk 0:00:54]} 17. Bh5 {[%clk 0:01:10.6]} 17... Bd7 {[%clk 0:00:39]} 18.
Qh3 {[%clk 0:01:02.6]} 18... g5 {[%clk 0:00:31.8]} 19. Be3 {[%clk 0:00:55.2]}
19... Bxe3 {[%clk 0:00:29.4]} 20. Qxe3 {[%clk 0:00:57.1]} 20... Ng7 {[%clk
0:00:21.4]} 21. Be2 {[%clk 0:00:57.8]} 21... Rad8 {[%clk 0:00:22.7]} 22. Nd4
{[%clk 0:00:57.3]} 22... Bc8 {[%clk 0:00:23.1]} 23. h4 {[%clk 0:00:52]} 23...
gxh4 {[%clk 0:00:22.8]} 24. Qh6 {[%clk 0:00:51.8]} 24... Ng6 {[%clk 0:00:20.5]}
25. Nf3 {[%clk 0:00:49.2]} 25... Qf7 {[%clk 0:00:18.7]} 26. Nxh4 {[%clk
0:00:47.9]} 26... Nxh4 {[%clk 0:00:19.9]} 27. Qxh4 {[%clk 0:00:49.8]} 27... f5
{[%clk 0:00:20.7]} 28. Bf3 {[%clk 0:00:46.5]} 28... Rd7 {[%clk 0:00:19.7]} 29.
Rc2 {[%clk 0:00:40.4]} 29... e5 {[%clk 0:00:18.6]} 30. Rcd2 {[%clk 0:00:38.5]}
30... Qg6 {[%clk 0:00:16.7]} 31. c5 {[%clk 0:00:29.9]} 31... Ne8 {[%clk
0:00:11]} 32. exf5 {[%clk 0:00:26.8]} 32... Qxf5 {[%clk 0:00:09.4]} 33. cxd6
{[%clk 0:00:27.3]} 33... Qg6 {[%clk 0:00:05.8]} 34. Be4 {[%clk 0:00:26.3]} 34...
Qg7 {[%clk 0:00:06.9]} 35. Ne2 {[%clk 0:00:23.2]} 35... Rf6 {[%clk 0:00:07.5]}
36. Qh5 {[%clk 0:00:14.9]} 36... Rf8 {[%clk 0:00:04.3]} 37. Ng3 {[%clk
0:00:15.2]} 37... Nf6 {[%clk 0:00:05.7]} 38. Qf5 {[%clk 0:00:14.9]} 38... Rxd6
{[%clk 0:00:05.5]} 39. Qxe5 {[%clk 0:00:12.8]} 39... Re6 {[%clk 0:00:06.5]} 40.
Qd4 {[%clk 0:00:14.3]} 40... Nxe4 {[%clk 0:00:07.2]} 41. Nxe4 {[%clk 0:00:16.2]}
41... Qxd4 {[%clk 0:00:08.2]} 42. Rxd4 {[%clk 0:00:18.1]} 42... Re7 {[%clk
0:00:05.6]} 43. f3 {[%clk 0:00:19.2]} 43... Be6 {[%clk 0:00:06.4]} 44. a3 {[%clk
0:00:19.8]} 44... Rc8 {[%clk 0:00:07.8]} 45. R1d2 {[%clk 0:00:19.8]} 45... Kg7
{[%clk 0:00:07.8]} 46. Kf2 {[%clk 0:00:21.2]} 46... h6 {[%clk 0:00:08.5]} 47.
Rd6 {[%clk 0:00:21.8]} 47... Rc1 {[%clk 0:00:09.2]} 48. Ng3 {[%clk 0:00:22.1]}
48... Rb1 {[%clk 0:00:09.8]} 49. Nh5+ {[%clk 0:00:22]} 49... Kf7 {[%clk
0:00:11.2]} 50. Nf4 {[%clk 0:00:23.3]} 50... Rh1 {[%clk 0:00:03.9]} 51. Rb6
{[%clk 0:00:23.7]} 51... Bc4 {[%clk 0:00:04.2]} 52. Rd4 {[%clk 0:00:21.4]} 52...
Bb5 {[%clk 0:00:04.8]} 53. Nd5 {[%clk 0:00:21.6]} 53... Re2+ {[%clk 0:00:05.3]}
54. Kg3 {[%clk 0:00:23]} 54... Rg1 {[%clk 0:00:06.4]} 55. Nf4 {[%clk 0:00:21.6]}
55... Re7 {[%clk 0:00:06.5]} 56. Rxh6 {[%clk 0:00:21.2]} 56... Kg7 {[%clk
0:00:04.6]} 57. Rdd6 {[%clk 0:00:20.9]} 57... Rb1 {[%clk 0:00:03.1]} 58. b4
{[%clk 0:00:21.5]} 58... Rb3 {[%clk 0:00:03.4]} 59. Rdf6 {[%clk 0:00:22.3]}
59... Bc6 {[%clk 0:00:03.8]} 60. Ne6+ {[%clk 0:00:23.6]} 1-0

[Event "*** Titled Tuesday Blitz"]
[Site "Chess.com"]
[Date "2018.06.05"]
[Round "8"]
[White "nabukatnezarr"]
[Black "Angry_Serb"]
[Result "0-1"]
[WhiteElo "2312"]
[BlackElo "2460"]
[TimeControl "180+2"]
[EndTime "14:58:14 PDT"]
[Termination "Angry_Serb won by resignation"]

1. Nf3 {[%clk 0:03:01.9]} 1... g6 {[%clk 0:03:00]} 2. e4 {[%clk 0:03:02.2]} 2...
Bg7 {[%clk 0:03:01.9]} 3. d4 {[%clk 0:03:03.7]} 3... d6 {[%clk 0:03:01.6]} 4.
Bc4 {[%clk 0:03:02.2]} 4... a6 {[%clk 0:03:01.4]} 5. Qe2 {[%clk 0:03:01.3]} 5...
b5 {[%clk 0:03:01.8]} 6. Bb3 {[%clk 0:03:02.5]} 6... Nc6 {[%clk 0:02:56.9]} 7.
c3 {[%clk 0:03:02.1]} 7... e5 {[%clk 0:02:57.3]} 8. Bg5 {[%clk 0:03:01]} 8...
Nf6 {[%clk 0:02:57.4]} 9. O-O {[%clk 0:02:55.4]} 9... O-O {[%clk 0:02:53.9]} 10.
d5 {[%clk 0:02:53.4]} 10... Na5 {[%clk 0:02:49.1]} 11. Bc2 {[%clk 0:02:52.7]}
11... c6 {[%clk 0:02:50.5]} 12. dxc6 {[%clk 0:02:47.3]} 12... Qc7 {[%clk
0:02:48.3]} 13. Rd1 {[%clk 0:02:41.6]} 13... Qxc6 {[%clk 0:02:45.7]} 14. Nbd2
{[%clk 0:02:40.6]} 14... Re8 {[%clk 0:02:41.5]} 15. Nf1 {[%clk 0:02:36.7]} 15...
h6 {[%clk 0:02:38.9]} 16. Bxf6 {[%clk 0:02:36.3]} 16... Bxf6 {[%clk 0:02:40.8]}
17. Ne3 {[%clk 0:02:37.6]} 17... Nc4 {[%clk 0:02:38.2]} 18. Nd5 {[%clk
0:02:37.3]} 18... Bg7 {[%clk 0:02:33.3]} 19. Bd3 {[%clk 0:02:38.2]} 19... Be6
{[%clk 0:02:31.6]} 20. b3 {[%clk 0:02:34.9]} 20... Nb6 {[%clk 0:02:28.9]} 21.
Nxb6 {[%clk 0:02:24.8]} 21... Qxb6 {[%clk 0:02:30.8]} 22. c4 {[%clk 0:02:26.3]}
22... Rab8 {[%clk 0:02:27.2]} 23. Rac1 {[%clk 0:02:24.7]} 23... f5 {[%clk
0:02:24.1]} 24. Nh4 {[%clk 0:02:14.8]} 24... f4 {[%clk 0:02:07.7]} 25. Nxg6
{[%clk 0:02:06.5]} 25... Kh7 {[%clk 0:02:08.8]} 26. Nh4 {[%clk 0:02:03.6]} 26...
Bf6 {[%clk 0:02:09.9]} 27. Nf5 {[%clk 0:01:56.3]} 27... Rg8 {[%clk 0:02:10.8]}
28. Qh5 {[%clk 0:01:46.8]} 28... Rg6 {[%clk 0:02:11.2]} 29. Bb1 {[%clk
0:01:39.4]} 29... Rd8 {[%clk 0:01:45.7]} 30. cxb5 {[%clk 0:01:31.2]} 30... axb5
{[%clk 0:01:44.4]} 31. Qf3 {[%clk 0:01:03.9]} 31... Rg5 {[%clk 0:01:01.3]} 32.
Kh1 {[%clk 0:00:54.9]} 32... d5 {[%clk 0:00:59.4]} 33. exd5 {[%clk 0:00:50.7]}
33... Bxf5 {[%clk 0:00:54.2]} 34. Bxf5+ {[%clk 0:00:52.6]} 34... Rxf5 {[%clk
0:00:56.1]} 35. Qe4 {[%clk 0:00:53.6]} 35... Kg6 {[%clk 0:00:56.8]} 36. g4
{[%clk 0:00:48.6]} 36... fxg3 {[%clk 0:00:57.5]} 37. fxg3 {[%clk 0:00:49.4]}
37... Bg5 {[%clk 0:00:37.5]} 38. g4 {[%clk 0:00:46.5]} 38... Bxc1 {[%clk
0:00:36.9]} 39. Qxf5+ {[%clk 0:00:45.9]} 39... Kg7 {[%clk 0:00:37.9]} 40. Qxe5+
{[%clk 0:00:45.6]} 40... Qf6 {[%clk 0:00:37.3]} 41. Qxf6+ {[%clk 0:00:43.8]}
41... Kxf6 {[%clk 0:00:39.2]} 42. Rxc1 {[%clk 0:00:45.1]} 42... Rxd5 {[%clk
0:00:40.8]} 43. Rc2 {[%clk 0:00:44.8]} 43... Kg5 {[%clk 0:00:40.5]} 44. h3
{[%clk 0:00:45.1]} 44... Kh4 {[%clk 0:00:39.9]} 45. Kg2 {[%clk 0:00:34.5]} 45...
Rd3 {[%clk 0:00:40]} 46. b4 {[%clk 0:00:35]} 46... Rg3+ {[%clk 0:00:40.2]} 47.
Kf2 {[%clk 0:00:35]} 47... Kxh3 {[%clk 0:00:40]} 48. Rc5 {[%clk 0:00:32.1]}
48... Rg2+ {[%clk 0:00:37]} 49. Kf3 {[%clk 0:00:33.2]} 49... Rg3+ {[%clk
0:00:34.6]} 50. Ke2 {[%clk 0:00:29.3]} 50... Kxg4 {[%clk 0:00:32.4]} 51. Kd1
{[%clk 0:00:16.9]} 51... Rg2 {[%clk 0:00:19.2]} 52. a3 {[%clk 0:00:13.9]} 52...
h5 {[%clk 0:00:19.2]} 53. Rxb5 {[%clk 0:00:14.7]} 53... h4 {[%clk 0:00:20.6]}
54. Rb8 {[%clk 0:00:14.7]} 54... h3 {[%clk 0:00:22]} 55. Rg8+ {[%clk 0:00:15.6]}
55... Kf3 {[%clk 0:00:23.2]} 56. Rf8+ {[%clk 0:00:16.9]} 56... Ke3 {[%clk
0:00:24.2]} 57. Re8+ {[%clk 0:00:18.3]} 57... Kd3 {[%clk 0:00:25.6]} 58. Rd8+
{[%clk 0:00:17.3]} 58... Kc4 {[%clk 0:00:23.7]} 59. Rc8+ {[%clk 0:00:17.4]}
59... Kb3 {[%clk 0:00:24.3]} 60. Rh8 {[%clk 0:00:11.4]} 60... h2 {[%clk
0:00:25.4]} 61. Rh3+ {[%clk 0:00:12.5]} 61... Ka4 {[%clk 0:00:25.9]} 62. b5
{[%clk 0:00:10.3]} 62... Kxb5 {[%clk 0:00:24.8]} 63. a4+ {[%clk 0:00:10.8]}
63... Kxa4 {[%clk 0:00:25.7]} 64. Ke1 {[%clk 0:00:12.4]} 64... Rg1+ {[%clk
0:00:26.3]} 65. Ke2 {[%clk 0:00:13.4]} 65... h1=Q {[%clk 0:00:27.8]} 66. Rh4+
{[%clk 0:00:14.9]} 66... Qxh4 {[%clk 0:00:27.8]} 0-1

[Event "*** Titled Tuesday Blitz"]
[Site "Chess.com"]
[Date "2018.06.05"]
[Round "8"]
[White "enriquetejedor"]
[Black "Abund"]
[Result "1-0"]
[WhiteElo "2559"]
[BlackElo "2504"]
[TimeControl "180+2"]
[EndTime "14:58:48 PDT"]
[Termination "enriquetejedor won by resignation"]

1. e4 {[%clk 0:02:50.9]} 1... c6 {[%clk 0:02:59.7]} 2. Nc3 {[%clk 0:02:36.8]}
2... d5 {[%clk 0:03:01.6]} 3. Nf3 {[%clk 0:02:37.4]} 3... Nf6 {[%clk 0:03:02.1]}
4. e5 {[%clk 0:02:36.8]} 4... Ne4 {[%clk 0:03:03.2]} 5. Ne2 {[%clk 0:02:38]}
5... Qb6 {[%clk 0:03:03.8]} 6. d4 {[%clk 0:02:36.8]} 6... e6 {[%clk 0:03:05.1]}
7. Ng3 {[%clk 0:02:35.3]} 7... c5 {[%clk 0:03:04.8]} 8. Bd3 {[%clk 0:02:36.2]}
8... Nxg3 {[%clk 0:02:56.1]} 9. hxg3 {[%clk 0:02:36.2]} 9... cxd4 {[%clk
0:02:48.9]} 10. a3 {[%clk 0:02:25.5]} 10... h6 {[%clk 0:02:41.4]} 11. b3 {[%clk
0:02:21.8]} 11... Bd7 {[%clk 0:02:31.2]} 12. Bb2 {[%clk 0:02:18.7]} 12... Bb5
{[%clk 0:02:26.5]} 13. Bxd4 {[%clk 0:02:09.9]} 13... Qa5+ {[%clk 0:02:25.5]} 14.
b4 {[%clk 0:02:10.1]} 14... Qa6 {[%clk 0:02:24.5]} 15. g4 {[%clk 0:02:00.9]}
15... Bxd3 {[%clk 0:02:23.5]} 16. Qxd3 {[%clk 0:01:58.9]} 16... Qxd3 {[%clk
0:02:19.8]} 17. cxd3 {[%clk 0:01:59.7]} 17... Nc6 {[%clk 0:02:20.9]} 18. Bb2
{[%clk 0:01:38.4]} 18... a6 {[%clk 0:02:17.7]} 19. Kd2 {[%clk 0:01:34.9]} 19...
Be7 {[%clk 0:02:11]} 20. g5 {[%clk 0:01:35.9]} 20... h5 {[%clk 0:02:02.3]} 21.
g4 {[%clk 0:01:35.9]} 21... h4 {[%clk 0:02:01.3]} 22. Ke3 {[%clk 0:01:31.5]}
22... Bd8 {[%clk 0:01:53.5]} 23. Kf4 {[%clk 0:01:31.3]} 23... Ne7 {[%clk
0:01:54]} 24. Nxh4 {[%clk 0:01:13.9]} 24... Rxh4 {[%clk 0:01:54.3]} 25. Rxh4
{[%clk 0:01:15]} 25... Ng6+ {[%clk 0:01:55.8]} 26. Kg3 {[%clk 0:01:16.7]} 26...
Nxh4 {[%clk 0:01:57.2]} 27. Kxh4 {[%clk 0:01:18.6]} 27... Rc8 {[%clk 0:01:57.4]}
28. Rc1 {[%clk 0:01:19.3]} 28... Rxc1 {[%clk 0:01:43.1]} 29. Bxc1 {[%clk
0:01:21.2]} 29... g6 {[%clk 0:01:36.6]} 30. Kg3 {[%clk 0:01:22.2]} 30... Kd7
{[%clk 0:01:37.6]} 31. Bd2 {[%clk 0:01:22.8]} 31... Kc6 {[%clk 0:01:35.8]} 32.
a4 {[%clk 0:01:24.1]} 32... Bb6 {[%clk 0:01:07.8]} 33. f4 {[%clk 0:01:21.9]}
33... Bd4 {[%clk 0:01:03.8]} 34. Kf3 {[%clk 0:01:23.1]} 34... Kb6 {[%clk
0:00:52.1]} 35. Ke2 {[%clk 0:00:16.5]} 35... Kc6 {[%clk 0:00:51.7]} 36. Bc1
{[%clk 0:00:15.4]} 36... Bc3 {[%clk 0:00:51.9]} 37. Bd2 {[%clk 0:00:16.4]} 37...
Bd4 {[%clk 0:00:27.1]} 38. Kd1 {[%clk 0:00:16.3]} 38... Bf2 {[%clk 0:00:27]} 39.
Kc2 {[%clk 0:00:12.3]} 39... Kb6 {[%clk 0:00:25.8]} 40. f5 {[%clk 0:00:08.9]}
40... Kc6 {[%clk 0:00:26]} 41. Bc3 {[%clk 0:00:06.6]} 41... d4 {[%clk
0:00:23.4]} 42. Bd2 {[%clk 0:00:04.1]} 42... Bg3 {[%clk 0:00:19.7]} 43. fxg6
{[%clk 0:00:02.8]} 43... fxg6 {[%clk 0:00:20.4]} 44. Kb3 {[%clk 0:00:03.3]}
44... Kd5 {[%clk 0:00:21.5]} 45. b5 {[%clk 0:00:04.1]} 45... axb5 {[%clk
0:00:21.9]} 46. axb5 {[%clk 0:00:06]} 46... Bxe5 {[%clk 0:00:21.1]} 47. Kb4
{[%clk 0:00:07.1]} 47... Bc7 {[%clk 0:00:21.7]} 48. Kb3 {[%clk 0:00:06.2]} 48...
Bb6 {[%clk 0:00:21.8]} 49. Bf4 {[%clk 0:00:06.3]} 49... Kc5 {[%clk 0:00:22.2]}
50. Ka4 {[%clk 0:00:06.5]} 50... Kd5 {[%clk 0:00:23.3]} 51. Bg3 {[%clk
0:00:06.2]} 51... e5 {[%clk 0:00:23.8]} 52. Kb4 {[%clk 0:00:06.6]} 52... e4
{[%clk 0:00:24.1]} 53. dxe4+ {[%clk 0:00:04.9]} 53... Kxe4 {[%clk 0:00:26]} 54.
Kc4 {[%clk 0:00:06.4]} 54... d3 {[%clk 0:00:26]} 55. Be1 {[%clk 0:00:07.5]}
55... Ke3 {[%clk 0:00:17.3]} 56. Kd5 {[%clk 0:00:04.4]} 56... Ke2 {[%clk
0:00:13.2]} 57. Bc3 {[%clk 0:00:03.7]} 57... Be3 {[%clk 0:00:12.4]} 58. Ke6
{[%clk 0:00:04.3]} 58... Bd2 {[%clk 0:00:12.8]} 59. Bf6 {[%clk 0:00:03.2]} 59...
Bxg5 {[%clk 0:00:13]} 60. Bxg5 {[%clk 0:00:04.1]} 60... Kf3 {[%clk 0:00:08.6]}
61. Kf6 {[%clk 0:00:03.8]} 61... Kxg4 {[%clk 0:00:09.1]} 62. Kxg6 {[%clk
0:00:05.3]} 62... Kf3 {[%clk 0:00:09.1]} 63. Kf5 {[%clk 0:00:06.3]} 63... Ke2
{[%clk 0:00:10]} 64. Ke5 {[%clk 0:00:06]} 64... d2 {[%clk 0:00:08.6]} 65. Bxd2
{[%clk 0:00:06.5]} 65... Kxd2 {[%clk 0:00:09.8]} 66. b6 {[%clk 0:00:08.2]} 66...
Kc3 {[%clk 0:00:11]} 67. Kd6 {[%clk 0:00:09.6]} 67... Kc4 {[%clk 0:00:10.6]} 68.
Kc7 {[%clk 0:00:11.5]} 68... Kb5 {[%clk 0:00:09.6]} 69. Kxb7 {[%clk 0:00:13.4]}
69... Ka5 {[%clk 0:00:10.7]} 70. Kc7 {[%clk 0:00:15]} 70... Ka6 {[%clk
0:00:11.7]} 71. b7 {[%clk 0:00:16.9]} 71... Ka5 {[%clk 0:00:11.4]} 72. b8=Q
{[%clk 0:00:18.2]} 72... Ka4 {[%clk 0:00:12.7]} 73. Qb2 {[%clk 0:00:19.3]} 1-0